[Event "SWE-ch Masters 2018"]
[Site "Ronneby"]
[Date "2018.07.01"]
[Round "2"]
[White "Laksman, Efraim"]
[Black "Neretljak, Nedzad"]
[Result "1-0"]
[ECO "A29"]
[WhiteElo "2184"]
[BlackElo "2108"]
[Annotator "NA"]
[PlyCount "97"]
[EventDate "2018.06.30"]
[EventType "tourn"]
[EventCountry "SWE"]
[SourceTitle "playchess.com"]
[Source "ChessBase"]
[SourceQuality "1"]
[TimeControl "40/5400+30:1800+30"]

1. c4 {[%emt 0:00:00]} e5 {[%emt 0:00:00]} 2. Nc3 {[%emt 0:00:00]} Nf6 {[%emt 0:00:08]} 3. Nf3 {[%emt 0:00:00]} Nc6 {[%emt 0:00:15]} 4. g3 {[%emt 0:00:00]} d5 {[%emt 0:01:19]} 5. cxd5 {[%emt 0:00:02]} Nxd5 {[%emt 0:00:05]} 6. Bg2 {[%emt 0:00:03]} Nb6 {[%emt 0:00:45]} 7. O-O {[%emt 0:00:14]} Be7 {[%emt 0:00:31]} 8. d3 {[%emt 0:05:23]} O-O {[%emt 0:01:41]} 9. Be3 {[%emt 0:00:21]} f5 {[%emt 0:02:25]} 10. d4 {[%emt 0:19:00] A29: English Opening: Four Knights Variation with 4 g3} (10. Rc1 Kh8 11. a3 Bf6 12. Bc5 Re8 13. b4 Be6 14. Re1 Qd7 15. e4 a6 16. Bh3 g6 17. Be3 Qg7 18. Ng5 Bg8 19. Nf3 {1-0 (53) Aronian,L (2825)-Nakamura,H (2775) Moscow 2012 CBM 149 [Marin,M]}) 10... f4 {[%emt 0:03:45]} 11. d5 {[%emt 0:02:44]} fxe3 {[%emt 0:01:12]} 12. dxc6 {[%emt 0:00:07]} exf2+ {[%emt 0:02:38]} 13. Kh1 $1 {[%emt 0:00:20]} Qxd1 {[%emt 0:05:07]} 14. Raxd1 $146 {[%emt 0:01:52]} ({Predecessor:} 14. Rfxd1 Nc4 15. Nxe5 Nxe5 16. cxb7 Bxb7 17. Bxb7 Rab8 {0-1 (30) Zhao,I (1645)-Solomon,S (2455) Ballarat 2017}) 14... Nc4 {[%emt 0:00:31]} 15. Rxf2 {[%emt 0:22:08]} (15. Nd2 $11 Nxd2 16. cxb7 Bxb7 17. Rxd2) 15... bxc6 {[%emt 0:02:23]} 16. e4 {[%emt 0:12:16]} Bc5 {[%emt 0:03:53]} 17. Re2 {[%emt 0:00:14]} Bg4 {[%emt 0:00:47]} 18. Rd3 {[%emt 0:00:16]} Rad8 {[%emt 0:04:56]} 19. Rxd8 {[%emt 0:04:31]} Rxd8 {[%emt 0:00:09]} 20. h3 {[%emt 0:00:03]} Bxf3 {[%emt 0:04:57]} 21. Bxf3 {[%emt 0:00:57]} Rd3 {[%emt 0:00:13]} 22. Bg4 {[%emt 0:00:32]} Kf7 {[%emt 0:00:33]} 23. Na4 {[%emt 0:02:20]} Bd4 {[%emt 0:03:26]} 24. Rc2 {[%emt 0:00:59]} Ne3 {[%emt 0:03:56]} 25. Rxc6 {[%emt 0:00:17]} (25. Nc5 $17 Bxc5 26. Rxc5) 25... Nxg4 {[%emt 0:00:08]} 26. hxg4 {[%emt 0:00:29]} Rxg3 27. Rxc7+ Kg6 {[%emt 0:02:42]} 28. Nc5 {[%emt 0:01:11]} Rxg4 {[%emt 0:01:41]} ({Don't play} 28... Bxb2 29. Ne6 $17) 29. b4 {[%emt 0:01:07]} Bxc5 {[%emt 0:06:13]} 30. Rxc5 {[%emt 0:00:14]} Rxe4 {[%emt 0:00:08]} 31. a3 {[%emt 0:00:07]} Kf5 {[%emt 0:04:09]} 32. Ra5 {[%emt 0:03:32]} g5 {[%emt 0:00:17]} 33. Rxa7 {[%emt 0:00:06]} h5 {[%emt 0:00:13]} 34. b5 {[%emt 0:00:19]} Kg4 {[%emt 0:00:21]} 35. Rc7 {[%emt 0:01:05]} Re3 $19 {[%emt 0:01:48]} 36. Kg2 {[%emt 0:03:32]} e4 {[%emt 0:11:05]} 37. a4 {[%emt 0:07:50]} h4 {[%emt 0:00:43]} 38. b6 {[%emt 0:03:45]} h3+ {[%emt 0:02:03]} 39. Kh2 {[%emt 0:02:30]} Re2+ {[%emt 0:00:18]} 40. Kh1 {[%emt 0:00:04]} Kg3 {[%emt 0:01:57]} 41. Rc1 {[%emt 0:30:10]} Rb2 {[%emt 0:31:13]} 42. a5 {[%emt 0:00:34]} e3 {[%emt 0:01:19]} 43. Ra1 {[%emt 0:00:54]} e2 {[%emt 0:05:22]} 44. a6 {[%emt 0:00:24]} h2 {[%emt 0:02:26]} 45. b7 {[%emt 0:01:50]} Kh3 {[%emt 0:02:46]} 46. a7 {[%emt 0:01:28]} Rd2 {[%emt 0:00:15]} 47. Ra3+ {[%emt 0:00:06]} Kh4 {[%emt 0:00:29]} 48. Re3 {[%emt 0:00:24]} g4 {[%emt 0:05:34]} 49. b8=Q {[%emt 0:01:19]} 1-0

[Event "SWE-ch Masters 2018"]
[Site "Ronneby"]
[Date "2018.07.01"]
[Round "2"]
[White "Mardell, Jimmy"]
[Black "Walinder, Lars"]
[Result "1/2-1/2"]
[ECO "D36"]
[WhiteElo "2173"]
[BlackElo "2231"]
[Annotator "NA"]
[PlyCount "56"]
[EventDate "2018.06.30"]
[EventType "tourn"]
[EventCountry "SWE"]
[SourceTitle "playchess.com"]
[Source "ChessBase"]
[SourceQuality "1"]
[TimeControl "40/5400+30:1800+30"]

{[%evp 23,46,16,25,2,10,0,17,8,17,24,21,19,26,0,10,0,44,43,51,32767,39,39,32767,32767,50]} 1. d4 {[%emt 0:00:00]} d5 {[%emt 0:00:00]} 2. c4 {[%emt 0:00:00]} e6 {[%emt 0:00:07]} 3. Nc3 {[%emt 0:00:00]} Nf6 {[%emt 0:00:27]} 4. cxd5 {[%emt 0:00:11]} exd5 {[%emt 0:00:08]} 5. Bg5 {[%emt 0:00:08]} c6 {[%emt 0:00:15]} 6. Qc2 {[%emt 0:00:58]} Nbd7 {[%emt 0:00:23]} 7. e3 {[%emt 0:00:12]} Be7 {[%emt 0:00:10]} 8. Bd3 {[%emt 0:00:18]} h6 {[%emt 0:00:17]} 9. Bh4 {[%emt 0:01:17]} Nh5 {[%emt 0:00:24]} 10. Bxe7 {[%emt 0:04:51]} Qxe7 {[%emt 0:00:11]} 11. Nge2 {[%emt 0:00:14]} Nb6 {[%emt 0:00:36]} 12. O-O {[%emt 0:01:59] D36: Queen's Gambit Declined: Exchange Variation: Main line (5 Bg5 c6 6 Qc2)} O-O {[%emt 0:02:47] LiveBook: 17 Games} 13. Na4 {[%emt 0:16:25]} (13. Rae1 Be6 14. Nc1 Rad8 15. Nb3 Rfe8 16. Nc5 Bc8 17. b4 Nc4 18. Qe2 Qg5 19. f4 Qh4 20. Bxc4 dxc4 {0-1 (37) Navara,D (2724)-Adams,M (2740) Biel 2015 CBM 168 [Krasenkow,M]}) 13... Nxa4 {[%emt 0:01:53]} 14. Qxa4 {[%emt 0:01:02]} Bg4 {[%emt 0:05:13]} 15. b4 {[%emt 0:04:23]} a6 {[%emt 0:02:33]} 16. Qb3 {[%emt 0:01:42]} Bxe2 $146 {[%emt 0:35:44]} ({Predecessor:} 16... Nf6 17. Rfc1 Bxe2 18. Bxe2 Ne4 19. Bf1 Qf6 {½-½ (70) Bartel,M (2260)-Smirnov,A (2478) Warsaw 2016}) 17. Bxe2 {[%emt 0:00:59]} Nf6 {[%emt 0:00:02]} 18. a4 {[%emt 0:06:12]} Ne4 {[%emt 0:02:36]} 19. Ra2 {[%emt 0:06:13]} b5 {[%emt 0:18:49]} 20. Rc2 {[%emt 0:10:27]} Rac8 {[%emt 0:00:57]} 21. Rfc1 {[%emt 0:00:47]} Qd7 {[%emt 0:00:45]} 22. Bd3 {[%emt 0:09:24]} Nd6 {[%emt 0:00:31]} 23. Rc5 {[%emt 0:03:59]} Nc4 $14 {[%emt 0:08:05]} 24. e4 {[%emt 0:11:52]} Rfe8 {[%emt 0:01:00]} 25. Qc2 {[%emt 0:07:18]} Na3 {[%emt 0:03:50]} 26. Qb3 {[%emt 0:00:07]} Nc4 {[%emt 0:00:10]} 27. Qc2 {[%emt 0:00:07]} Na3 {[%emt 0:00:22]} 28. Qb3 {[%emt 0:00:54]} Nc4 {[%emt 0:00:10]} 1/2-1/2

[Event "SWE-ch Masters 2018"]
[Site "Ronneby"]
[Date "2018.07.01"]
[Round "2"]
[White "Petersson, Baldur Teodor"]
[Black "Wengholm, Anders"]
[Result "1-0"]
[ECO "B00"]
[WhiteElo "2153"]
[BlackElo "2186"]
[Annotator "NA"]
[PlyCount "81"]
[EventDate "2018.06.30"]
[EventType "tourn"]
[EventCountry "SWE"]
[SourceTitle "playchess.com"]
[Source "ChessBase"]
[SourceQuality "1"]
[TimeControl "40/5400+30:1800+30"]

1. e4 {[%emt 0:00:00]} d6 {[%emt 0:04:02]} 2. Nf3 {[%emt 0:00:56]} Nf6 {[%emt 0:00:31]} 3. d3 {[%emt 0:00:10]} g6 {[%emt 0:02:46]} 4. g3 {[%emt 0:01:58]} Bg7 {[%emt 0:00:06]} 5. Bg2 {[%emt 0:00:15]} O-O {[%emt 0:00:09]} 6. O-O {[%emt 0:00:41]} c5 {[%emt 0:00:30]} 7. c3 {[%emt 0:00:32]} Nc6 {[%emt 0:01:25]} 8. Re1 {[%emt 0:01:13]} b6 {[%emt 0:19:16]} 9. d4 {[%emt 0:09:39]} Bb7 {[%emt 0:05:29]} 10. d5 {[%emt 0:11:09]} Nb8 {[%emt 0:00:24]} 11. c4 {[%emt 0:00:51]} Ng4 {[%emt 0:12:42]} 12. Qe2 {[%emt 0:06:12]} Ne5 {[%emt 0:02:17]} 13. Nh4 {[%emt 0:05:50]} Re8 {[%emt 0:05:57]} 14. f4 {[%emt 0:13:14]} Ned7 {[%emt 0:00:43]} 15. Nc3 {[%emt 0:04:10]} e6 {[%emt 0:13:26]} 16. Nb5 {[%emt 0:05:01]} Nf6 $16 {[%emt 0:21:43]} 17. dxe6 {[%emt 0:01:48]} Rxe6 {[%emt 0:00:34]} 18. e5 {[%emt 0:01:13]} Nc6 {[%emt 0:00:34]} 19. Nxd6 {[%emt 0:04:28]} Rxd6 {[%emt 0:00:09]} 20. exd6 {[%emt 0:00:46]} Qxd6 {[%emt 0:00:01]} 21. Nf3 {[%emt 0:01:26]} Re8 {[%emt 0:03:07]} 22. Qf1 {[%emt 0:00:54]} Ne4 {[%emt 0:00:58]} 23. h3 {[%emt 0:05:44]} f5 {[%emt 0:00:19]} 24. Ng5 {[%emt 0:01:58]} Nd4 {[%emt 0:00:41]} 25. Qd3 {[%emt 0:01:24]} Qc6 {[%emt 0:01:38]} 26. Rb1 {[%emt 0:05:54]} h6 {[%emt 0:00:12]} 27. Nxe4 {[%emt 0:02:06]} fxe4 {[%emt 0:00:05]} 28. Qd1 {[%emt 0:00:10]} Nf5 {[%emt 0:01:42]} 29. g4 {[%emt 0:02:07]} Nd4 {[%emt 0:00:07]} 30. b4 {[%emt 0:01:33]} cxb4 {[%emt 0:00:46]} 31. Bb2 {[%emt 0:01:57]} Qc5 {[%emt 0:01:31]} 32. Bxd4 {[%emt 0:00:56]} Bxd4+ {[%emt 0:00:24]} 33. Kh1 {[%emt 0:00:17]} Bc3 {[%emt 0:00:23]} 34. Qd7 {[%emt 0:01:39]} Bc6 {[%emt 0:00:23]} 35. Qxa7 {[%emt 0:00:37]} Bxe1 {[%emt 0:00:16]} 36. Rxe1 {[%emt 0:00:05]} e3 {[%emt 0:00:31]} 37. Re2 {[%emt 0:01:34]} Qxc4 {[%emt 0:01:03]} 38. Qxb6 {[%emt 0:00:09]} Qxe2 {[%emt 0:00:22]} 39. Qxc6 {[%emt 0:00:17]} Kf7 {[%emt 0:01:13]} 40. Bd5+ {[%emt 0:00:57]} Ke7 {[%emt 0:00:14]} 41. Qc7+ {[%emt 0:30:34]} 1-0

[Event "SWE-ch Masters 2018"]
[Site "Ronneby"]
[Date "2018.07.01"]
[Round "2"]
[White "Svorono, Gabriel"]
[Black "Tiger Norqvist, Axel"]
[Result "0-1"]
[ECO "C11"]
[WhiteElo "2105"]
[BlackElo "2158"]
[Annotator "NA"]
[PlyCount "66"]
[EventDate "2018.06.30"]
[EventType "tourn"]
[EventCountry "SWE"]
[SourceTitle "playchess.com"]
[Source "ChessBase"]
[SourceQuality "1"]
[TimeControl "40/5400+30:1800+30"]

{[%evp 20,47,30,35,47,32767,96,77,144,44,46,55,62,64,51,43,73,0,0,10,20,0,0,-3,0,-13,0,-21,0,-30]} 1. e4 {[%emt 0:00:00]} e6 {[%emt 0:00:00]} 2. d4 {[%emt 0:00:00]} d5 {[%emt 0:00:00]} 3. Nc3 {[%emt 0:00:18]} Nf6 {[%emt 0:00:10]} 4. e5 {[%emt 0:00:07]} Nfd7 {[%emt 0:00:10]} 5. f4 {[%emt 0:00:07]} c5 {[%emt 0:00:26]} 6. Nf3 {[%emt 0:00:07]} Nc6 {[%emt 0:00:20]} 7. Be3 {[%emt 0:00:07]} a6 {[%emt 0:00:36]} 8. Qd2 {[%emt 0:00:32]} b5 {[%emt 0:01:59]} 9. O-O-O {[%emt 0:00:50] C11: French: Classical System: 4 e5 and 4 Bg5 dxe4} (9. dxc5 Bxc5 10. Ne2 O-O 11. Ned4 Qb6 12. c3 b4 13. Bd3 a5 14. O-O Ba6 15. Kh1 Bxd3 16. Qxd3 Qa6 17. Qc2 bxc3 18. bxc3 {½-½ (31) Dominguez Perez,L (2739)-So,W (2788) Saint Louis 2017}) 9... Qb6 {[%emt 0:02:38]} 10. Kb1 {[%emt 0:05:14]} c4 $146 {[%emt 0:10:35]} ({Predecessor:} 10... cxd4 11. Nxd4 Nxd4 12. Bxd4 Bc5 13. Ne2 Bb7 14. Qe3 O-O-O 15. g3 Kb8 16. Bh3 g6 {½-½ (35) Rauch,U-Knippel,M Germany 2002}) 11. f5 $1 {[%emt 0:01:23]} b4 {[%emt 0:04:20]} 12. Na4 {[%emt 0:05:55]} Qa5 {[%emt 0:02:00]} 13. fxe6 {[%emt 0:01:17]} Qxa4 {[%emt 0:10:09]} (13... fxe6 $14 14. b3 Be7) 14. exd7+ {[%emt 0:00:30]} Bxd7 {[%emt 0:00:57]} 15. b3 {[%emt 0:02:37]} cxb3 {[%emt 0:06:24]} 16. cxb3 {[%emt 0:00:52]} Qa5 {[%emt 0:02:07]} 17. Bd3 {[%emt 0:03:04]} Be7 {[%emt 0:02:34]} 18. Bg5 {[%emt 0:05:49]} (18. Qf2 $16) 18... h6 {[%emt 0:02:41]} 19. Bxe7 {[%emt 0:01:53]} Nxe7 {[%emt 0:00:26]} 20. Rc1 {[%emt 0:01:38]} O-O {[%emt 0:01:08]} 21. Rhf1 {[%emt 0:15:27]} Rac8 {[%emt 0:04:08]} 22. Ng1 {[%emt 0:03:22]} Rxc1+ {[%emt 0:10:02]} 23. Qxc1 {[%emt 0:00:36]} Qb6 {[%emt 0:01:25]} 24. Ne2 $11 {[%emt 0:08:47]} a5 {[%emt 0:09:19]} 25. a4 {[%emt 0:07:55]} bxa3 {[%emt 0:04:21]} 26. Qxa3 {[%emt 0:01:19]} Nc6 {[%emt 0:06:13]} 27. Qb2 {[%emt 0:07:27]} Nb4 {[%emt 0:00:46]} 28. Nf4 {[%emt 0:05:27]} Nxd3 {[%emt 0:06:52]} 29. Nxd3 {[%emt 0:00:17]} Qg6 {[%emt 0:00:11]} 30. Qd2 {[%emt 0:02:30]} a4 {[%emt 0:03:46]} 31. bxa4 {[%emt 0:02:58]} Rb8+ {[%emt 0:00:56]} 32. Ka1 {[%emt 0:06:44]} Qa6 {[%emt 0:00:29]} 33. a5 {[%emt 0:02:32]} Qc4 {[%emt 0:01:02]} 0-1

[Event "SWE-ch Masters 2018"]
[Site "Ronneby"]
[Date "2018.07.01"]
[Round "2"]
[White "Andersson, Paul"]
[Black "Carlsson, Andreas"]
[Result "1/2-1/2"]
[ECO "A13"]
[WhiteElo "2099"]
[BlackElo "2029"]
[Annotator "NA"]
[PlyCount "45"]
[EventDate "2018.06.30"]
[EventType "tourn"]
[EventCountry "SWE"]
[SourceTitle "playchess.com"]
[Source "ChessBase"]
[SourceQuality "1"]
[TimeControl "40/5400+30:1800+30"]

{[%evp 12,45,33,16,29,20,17,24,17,16,32767,16,13,8,12,8,14,-3,32767,0,0,0,0,0,0,32767,-47,32767,-2,-37,-36,-20,-43,-27,-16,-44]} 1. Nf3 {[%emt 0:00:00]} d5 {[%emt 0:00:43]} 2. c4 {[%emt 0:00:00]} e6 {[%emt 0:03:46]} 3. g3 {[%emt 0:00:12]} f5 {[%emt 0:00:11]} 4. Bg2 {[%emt 0:00:14]} Nf6 {[%emt 0:00:07]} 5. O-O {[%emt 0:01:15]} c6 {[%emt 0:01:01]} 6. b3 {[%emt 0:03:32]} Bd6 {[%emt 0:02:58]} 7. Bb2 {[%emt 0:05:46]} O-O {[%emt 0:00:24]} 8. e3 {[%emt 0:05:23]} Qe7 {[%emt 0:02:28]} 9. d4 {[%emt 0:04:06]} b6 {[%emt 0:00:29]} 10. Ne5 {[%emt 0:02:49]} Bb7 {[%emt 0:00:18]} 11. Nd2 {[%emt 0:07:48] LiveBook: 32 Games} Nbd7 {[%emt 0:06:01] A90: Dutch Defence: Miscellaneous and Modern Stonewall (with ...Bd6)} 12. Ndf3 {[%emt 0:03:04]} (12. Qe2 Ne4 13. Nxd7 Qxd7 14. Nf3 c5 15. Rfd1 Qe7 16. Ne5 Bxe5 17. dxe5 dxc4 18. bxc4 {0-1 (49) Melkumyan,H (2664)-Adhiban,B (2650) chess.com INT 2018}) 12... Ne4 {[%emt 0:05:58]} 13. Nxd7 {[%emt 0:08:38]} Qxd7 {[%emt 0:00:08]} 14. cxd5 {[%emt 0:03:20]} cxd5 {[%emt 0:00:51]} 15. Qe2 $146 {[%emt 0:00:11]} ({Predecessor:} 15. Ne5 Qe7 16. f3 Nf6 17. Rf2 Ba6 18. Rc2 Rac8 19. Rac1 Rxc2 20. Rxc2 Qb7 21. Qc1 Rc8 22. Rxc8+ Qxc8 23. Qxc8+ Bxc8 24. Nc6 {½-½ (24) Kunz,H (1790)-Baumgartner,J (1880) Bayern 2002}) 15... a5 {[%emt 0:00:18]} 16. Rfc1 {[%emt 0:00:51]} Ba6 {[%emt 0:00:47]} 17. Qd1 {[%emt 0:02:17]} Rfc8 {[%emt 0:00:43]} 18. Rxc8+ {[%emt 0:08:54]} Rxc8 {[%emt 0:00:18]} 19. Rc1 {[%emt 0:00:12]} Rc7 {[%emt 0:01:59]} 20. Nd2 {[%emt 0:04:17]} Rxc1 {[%emt 0:03:06]} 21. Qxc1 {[%emt 0:00:55]} Nxd2 {[%emt 0:00:35]} 22. Qxd2 {[%emt 0:00:02]} Qc6 {[%emt 0:00:24]} 23. f3 $15 {[%emt 0:05:18]} 1/2-1/2

[Event "SWE-ch Masters 2018"]
[Site "Ronneby"]
[Date "2018.07.01"]
[Round "2"]
[White "Mattsson, Michael"]
[Black "Bit Narva, David"]
[Result "1-0"]
[ECO "B06"]
[WhiteElo "2032"]
[BlackElo "1926"]
[Annotator "NA"]
[PlyCount "63"]
[EventDate "2018.06.30"]
[EventType "tourn"]
[EventCountry "SWE"]
[SourceTitle "playchess.com"]
[Source "ChessBase"]
[SourceQuality "1"]
[TimeControl "40/5400+30:1800+30"]

{[%evp 15,43,26,102,75,94,32767,91,115,98,115,96,81,65,46,81,46,78,87,102,87,63,39,85,75,75,32767,32767,32767,28,-230]} 1. e4 {[%emt 0:00:00]} g6 {[%emt 0:01:47]} 2. d4 {[%emt 0:00:07]} Bg7 {[%emt 0:00:07]} 3. Nc3 {[%emt 0:00:05]} d6 {[%emt 0:00:06]} 4. Be3 {[%emt 0:00:11]} a6 {[%emt 0:00:06]} 5. Qd2 {[%emt 0:01:10]} Nd7 {[%emt 0:00:10]} 6. h4 {[%emt 0:00:09] B06: Moderne Verteidigung} h6 {[%emt 0:00:14]} 7. O-O-O {[%emt 0:04:23]} b5 {[%emt 0:01:44]} 8. f4 {[%emt 0:06:24]} Ngf6 {[%emt 0:07:15]} (8... h5 $11 {remains equal.}) 9. e5 {[%emt 0:01:42]} Ng4 {[%emt 0:00:55]} 10. Nf3 $146 {[%emt 0:05:20]} ({Vorgänger:} 10. h5 Nb6 11. hxg6 fxg6 12. Nf3 O-O 13. Bg1 Bf5 {1-0 (48) Morozevich,A (2711)-Shariyazdanov,A (2535) Kazan 2015}) 10... e6 {[%emt 0:06:44]} 11. h5 {[%emt 0:02:51]} Nxe3 {[%emt 0:04:20]} 12. Qxe3 {[%emt 0:00:26]} g5 {[%emt 0:01:56]} 13. exd6 {[%emt 0:07:23]} cxd6 {[%emt 0:05:06]} 14. Bd3 {[%emt 0:04:12]} Nf6 {[%emt 0:29:59]} 15. fxg5 {[%emt 0:03:17]} hxg5 {[%emt 0:00:08]} 16. h6 {[%emt 0:02:41]} ({Don't play} 16. Nxg5 $6 Bh6 $11) 16... Bxh6 {[%emt 0:01:47]} 17. Rxh6 {[%emt 0:04:17]} Rxh6 {[%emt 0:00:08]} 18. Nxg5 {[%emt 0:00:52]} Ng4 {[%emt 0:09:29]} 19. Qf4 {[%emt 0:00:25]} f5 {[%emt 0:00:11]} 20. Re1 {[%emt 0:14:48]} Rg6 {[%emt 0:03:38]} 21. Be4 {[%emt 0:06:29]} Ra7 {[%emt 0:09:17]} ({Natürlich nicht} 21... Rxg5 $6 22. Bxa8 Rh5 23. Kb1 $14) ({Besser ist} 21... Qxg5 $15 22. Qxg5 Rxg5 23. Bxa8 Kf7) 22. Bc6+ $19 {[%emt 0:00:08]} (22. Bxf5 $1 $11 {and White is okay.} Qxg5 23. Bxg6+ Qxg6 24. Qxd6 Qg5+ 25. Kb1) 22... Kf8 {[%emt 0:00:12]} 23. Nf3 {[%emt 0:07:14]} d5 {[%emt 0:07:50]} 24. Nxd5 {[%emt 0:01:49]} exd5 {[%emt 0:03:42]} 25. Re8+ {[%emt 0:00:13]} Qxe8 {[%emt 0:00:02]} 26. Bxe8 {[%emt 0:00:06]} Kxe8 {[%emt 0:00:07]} 27. Qb8 {[%emt 0:00:17]} Re7 {[%emt 0:00:54]} 28. Qxc8+ {[%emt 0:02:56]} Kf7 {[%emt 0:00:04]} 29. Qxf5+ {[%emt 0:00:11]} Kg7 {[%emt 0:00:05]} 30. Nh4 {[%emt 0:04:17]} Re1+ {[%emt 0:02:10]} 31. Kd2 {[%emt 0:00:12]} Rd1+ {[%emt 0:04:25]} 32. Ke2 {[%emt 0:00:04]} 1-0

[Event "SWE-ch Masters 2018"]
[Site "Ronneby"]
[Date "2018.07.01"]
[Round "2"]
[White "Lindvall, Johannes"]
[Black "Tegler, Erik"]
[Result "0-1"]
[ECO "C97"]
[WhiteElo "2010"]
[BlackElo "2073"]
[Annotator "NA"]
[PlyCount "132"]
[EventDate "2018.06.30"]
[EventType "tourn"]
[EventCountry "SWE"]
[SourceTitle "playchess.com"]
[Source "ChessBase"]
[SourceQuality "1"]
[TimeControl "40/5400+30:1800+30"]

1. e4 {[%emt 0:00:00]} e5 {[%emt 0:00:00]} 2. Nf3 Nc6 {[%emt 0:00:00]} 3. Bb5 {[%emt 0:00:06]} a6 {[%emt 0:00:17]} 4. Ba4 {[%emt 0:00:06]} Nf6 {[%emt 0:00:16]} 5. O-O {[%emt 0:00:09]} d6 {[%emt 0:00:18]} 6. Re1 {[%emt 0:00:59]} b5 {[%emt 0:00:38]} 7. Bb3 {[%emt 0:00:06]} Be7 {[%emt 0:00:16]} 8. c3 {[%emt 0:00:08]} O-O {[%emt 0:00:11]} 9. h3 {[%emt 0:00:12]} Na5 {[%emt 0:02:13]} 10. Bc2 {[%emt 0:00:06]} c5 {[%emt 0:00:09]} 11. d4 {[%emt 0:00:41]} Qc7 {[%emt 0:07:59]} 12. Nbd2 {[%emt 0:01:14]} Re8 {[%emt 0:11:11]} 13. Nf1 {[%emt 0:07:26]} Bf8 {[%emt 0:00:22]} 14. Ng3 {[%emt 0:04:34] LiveBook: 3 Games C97: Closed Ruy Lopez: Chigorin Defence: 11 d4 Qc7, sidelines} g6 {[%emt 0:06:31]} 15. Bg5 {[%emt 0:10:48]} (15. d5 c4 16. Bg5 Bg7 17. Qd2 Nb7 18. Nh4 Nc5 19. Bh6 Bxh6 20. Qxh6 Qe7 21. f4 exf4 22. Qxf4 {1-0 (75) Robson,R (2675)-Stukopin,A (2586) chess.com INT 2017}) 15... Bg7 {[%emt 0:01:36]} 16. d5 {[%emt 0:17:33]} h6 {[%emt 0:05:38]} 17. Bxf6 $146 {[%emt 0:02:50]} ({Predecessor:} 17. Bc1 Nc4 18. b3 Nb6 19. Be3 Bd7 20. Qd2 Kh7 21. Qe2 c4 22. Bxb6 Qxb6 23. bxc4 {1-0 (67) Lounek,J (2337)-Schwarz,J (2292) Czechia 2003}) 17... Bxf6 {[%emt 0:00:01]} 18. b3 {[%emt 0:00:07]} c4 {[%emt 0:03:02]} 19. b4 {[%emt 0:00:19]} Nb7 {[%emt 0:00:04]} 20. Qd2 {[%emt 0:02:34]} Kh7 {[%emt 0:01:42]} 21. h4 {[%emt 0:06:31]} (21. a4 $11) 21... Bg4 {[%emt 0:14:52]} 22. Nh2 {[%emt 0:10:58]} Bd7 {[%emt 0:00:19]} 23. h5 {[%emt 0:00:26]} Bg5 {[%emt 0:01:43]} 24. Qe2 {[%emt 0:01:45]} a5 {[%emt 0:01:27]} 25. a3 {[%emt 0:00:12]} Ra6 {[%emt 0:08:07]} 26. Ngf1 {[%emt 0:08:50]} Rea8 {[%emt 0:03:47]} 27. Rad1 {[%emt 0:00:46]} (27. a4 $11 {remains equal.}) 27... axb4 {[%emt 0:01:07]} 28. axb4 $17 {[%emt 0:00:03]} Nd8 {[%emt 0:03:52]} 29. g3 {[%emt 0:01:25]} Ra3 {[%emt 0:06:19]} 30. f4 {[%emt 0:06:49]} exf4 {[%emt 0:03:17]} 31. hxg6+ {[%emt 0:01:40]} fxg6 {[%emt 0:00:32]} 32. e5 {[%emt 0:00:18]} dxe5 {[%emt 0:03:03]} 33. Qh5 {[%emt 0:01:01]} Bf5 {[%emt 0:02:20]} 34. Bxf5 {[%emt 0:00:12]} gxf5 {[%emt 0:00:03]} 35. gxf4 {[%emt 0:00:22]} Bxf4 {[%emt 0:04:15]} 36. Qxf5+ {[%emt 0:00:45]} Kg8 {[%emt 0:00:29]} 37. Re2 {[%emt 0:01:31]} Ra2 {[%emt 0:01:24]} 38. Nd2 {[%emt 0:02:43]} Qf7 {[%emt 0:05:37]} 39. Qe4 {[%emt 0:04:33]} Kh8 {[%emt 0:01:10]} 40. Nhf3 {[%emt 0:02:59]} Ra1 {[%emt 0:01:45]} 41. Nb1 {[%emt 0:32:05]} Qg7+ {[%emt 0:09:46]} 42. Rg2 {[%emt 0:00:00]} Qh7 {[%emt 0:00:21]} 43. Rg6 {[%emt 0:00:00]} Nf7 {[%emt 0:02:26]} 44. Qf5 {[%emt 0:00:00]} Qxg6+ {[%emt 0:02:48]} 45. Qxg6 {[%emt 0:00:00]} Rg8 {[%emt 0:00:04]} 46. Nh4 {[%emt 0:00:00]} Be3+ {[%emt 0:00:14]} 47. Kg2 {[%emt 0:00:00]} Rxg6+ {[%emt 0:00:25]} 48. Nxg6+ {[%emt 0:00:00]} Kg7 {[%emt 0:00:06]} 49. Nh4 {[%emt 0:00:00]} Nd6 {[%emt 0:01:41]} 50. Kf3 {[%emt 0:00:00]} Bg5 {[%emt 0:01:09]} 51. Kg4 {[%emt 0:00:00]} Ne4 {[%emt 0:01:51]} 52. Kf5 {[%emt 0:00:00]} Nf2 {[%emt 0:01:32]} 53. Rg1 {[%emt 0:00:00]} e4 {[%emt 0:01:44]} 54. Ng2 {[%emt 0:00:00]} Ra8 {[%emt 0:02:03]} 55. Ke6 {[%emt 0:04:22]} Nh3 {[%emt 0:02:18]} 56. Re1 {[%emt 0:00:27]} Ra2 {[%emt 0:02:13]} 57. Ne3 {[%emt 0:01:10]} Nf4+ {[%emt 0:00:42]} 58. Kd7 {[%emt 0:01:05]} Re2 {[%emt 0:00:56]} 59. Rxe2 {[%emt 0:01:57]} Nxe2 {[%emt 0:00:01]} 60. Nxc4 {[%emt 0:02:25]} bxc4 {[%emt 0:00:32]} 61. b5 {[%emt 0:00:36]} Nf4 {[%emt 0:00:55]} 62. b6 {[%emt 0:00:57]} Nxd5 {[%emt 0:00:20]} 63. b7 {[%emt 0:00:06]} Bf4 {[%emt 0:00:09]} 64. Nd2 {[%emt 0:00:34]} Nb6+ {[%emt 0:01:32]} 65. Kc6 {[%emt 0:00:18]} e3 {[%emt 0:00:09]} 66. Ne4 {[%emt 0:00:49]} Bb8 {[%emt 0:01:24]} 0-1